Cogmind - Beta 16.1 @@@ ROGUE MODE // 2026.03.14 @ 22:23:00 Player: Kaisercar Result: Destroyed by D3-ZA3(R) with Subdweller Beam Cannon Performance ------------- Evolutions (0) 0 Regions Visited (2) 400 Robots Destroyed (32) 160 Value Destroyed (865) 865 Prototype IDs (0) 0 Alien Tech Used (0) 0 Bonus (0) 0 TOTAL SCORE: 1425 Bonus ------- None Cogmind --------- Core Integrity 0/250 Matter 240/300 Energy 92/100 System Corruption 6% Temperature Warm (130) Movement Treading (160) Location -10/Subcaves Parts ------- > --- POWER (1) -------- (None) > --- PROPULSION (2) --- Light Treads Light Treads > --- UTILITY (2) ------ Large Storage Unit > --- WEAPON (2) ------- Beam Cannon (fused) Subdweller Machine Gun > --- INVENTORY (15) --- Subdweller Power Source Light Treads Light Treads Wheel Subdweller Monowheel Visual Processing Unit Subdweller Optics Seismic Detector Particle Gun Subdweller Machine Gun Subdweller Machine Gun Grenade Launcher Grenade Launcher Plasma Cutter Heavy Hammer Peak State ------------ > --- POWER ------------ Light Nuclear Core > --- PROPULSION ------- Light Treads Light Treads > --- UTILITY ---------- Large Storage Unit Seismic Detector > --- WEAPON ----------- Particle Gun Heavy Hammer > --- INVENTORY -------- Subdweller Power Source Light Treads Light Treads Light Treads Light Treads Wheel Subdweller Monowheel Visual Processing Unit Beam Cannon Subdweller Machine Gun Grenade Launcher Grenade Launcher Plasma Cutter [Rating: 12] Favorites ----------- Power Light Ion Engine Engine Light Ion Engine Power Core Light Nuclear Core Propulsion Light Treads Treads Light Treads Utility Seismic Detector Device Seismic Detector Storage Small Storage Unit Protection Light Armor Plating Weapon Beam Cannon Energy Gun Particle Gun Energy Cannon Beam Cannon Ballistic Gun Light Assault Rifle Launcher Grenade Launcher Impact Weapon Heavy Hammer Build | -11 -10 -10 ------- Run | Yrd Mat Sub Slots Evolved . | . . . Power . | . . . Propulsion . | . . . Utility . | . . . Weapon . | . . . Parts Attached 19 | 7 6 6 Power 3 | 1 1 1 Engine 2 | 1 1 . Core 1 | . . 1 Reactor . | . . . Propulsion 5 | 2 1 2 Treads 5 | 2 1 2 Leg . | . . . Wheel . | . . . Hover . | . . . Flight . | . . . Utility 4 | 2 1 1 Device 1 | 1 . . Storage 2 | 1 1 . Processor . | . . . Hackware . | . . . Protection 1 | . . 1 Artifact . | . . . Weapon 7 | 2 3 2 Energy Gun 1 | . . 1 Energy Cannon 1 | . 1 . Ballistic Gun 3 | 2 . 1 Ballistic Cannon . | . . . Launcher 1 | . 1 . Special Weapon . | . . . Impact Weapon 1 | . 1 . Slashing Weapon . | . . . Piercing Weapon . | . . . Special Melee Weapon . | . . . Unidentified Prototypes . | . . . Parts Lost 7 | . 2 5 Power 3 | . 1 2 Propulsion 2 | . 1 1 Utility 1 | . . 1 Weapon 1 | . . 1 Highest Loss Streak 2 | . 1 2 To Critical Strikes . | . . . Average Backups 9 | 3 8 13 Power . | . . . Propulsion 3 | 1 3 5 Utility 1 | . 1 1 Weapon 3 | . 2 4 Tool/Special . | . . . Unused Backups 15 | . 4 11 Power 1 | . . 1 Propulsion 5 | . 1 4 Utility 4 | . 2 2 Weapon 4 | . 1 3 Tool/Special 1 | . . 1 Average Slot Usage (%) 99 | . 99 99 Engine 9 | . 14 . Core 4 | . . 12 Treads 27 | . 27 27 Device 13 | . 14 13 Storage 14 | . 14 14 Energy Gun 1 | . . 5 Energy Cannon 12 | . 12 13 Ballistic Gun 11 | . 14 6 Impact Weapon 1 | . . 3 Peak Build Rating 12 | 7 9 12 Average Rating 8 | 5 7 11 On Entrance 5 | . 7 8 Avg Prop Armor Cover (%) . | . . . Naked Turns . | . . . Heaviest Build 35 | 11 30 35 Greatest Support 40 | 40 40 40 Greatest Overweight (x) 1 | . 1 1 Average Overweight (x) . | . . . Largest Inventory Capacity 15 | 8 15 15 Average Capacity 11 | 7 9 15 Most Carried 15 | 4 12 15 Average Carried 9 | 3 8 13 Final Capacity 15 | 8 15 15 Final Carried 15 | 4 12 15 Class Distribution -------------------- 100% | Mutant Dominant Class ---------------- Mutant | -10/Materials Mutant | -10/Subcaves Resources | -11 -10 -10 ----------- Run | Yrd Mat Sub Matter Collected 813 | 297 378 138 Remotely . | . . . Salvage Created 1027 | 49 674 304 Parts 52 | 10 26 16 Haulers Intercepted 1 | . 1 . Recyclers Shooed . | . . . Parts Field Recycled . | . . . Retrieved Matter . | . . . Parts Self-Destructed 6 | . . 6 Prevented . | . . . Parts Restored . | . . . Kills | -11 -10 -10 ------- Run | Yrd Mat Sub Combat Hostiles Destroyed 21 | . 14 7 Guns 4 | . 2 2 Cannons 13 | . 8 5 AOE 3 | . 3 . Classes Destroyed 9 | 1 6 2 Tunneler 4 | 4 . . Hauler 1 | . 1 . Recycler 1 | . 1 . Operator 2 | . 2 . Watcher 3 | . 3 . Swarmer 3 | . 3 . Grunt 13 | . 11 2 Sentry 1 | . . 1 Subdweller 4 | . . 4 Best Kill Streak 4 | 2 4 4 Combat Bots Only 4 | . 4 4 Max Kills in Single Turn 3 | 1 3 1 Gunslinging . | . . . Exploded 3 | . 3 . Melee . | . . . Uniques/NPCs Destroyed . | . . . Combat | -11 -10 -10 -------- Run | Yrd Mat Sub Hostile Shots Fired 112 | . 56 56 Missed 26 | . 18 8 Hits 86 | . 38 48 Projectile 86 | . 38 48 Critical Strikes 4 | . . 4 Damage Taken 1474 | . 515 959 Core 275 | . 76 199 Absorbed by Shields . | . . . Regen/Repaired (Parts) 91 | . 91 . Core Remaining (%) 100 | 100 . . Volleys Fired 97 | 15 48 34 Largest 2 | 2 2 2 Hottest 125 | 40 80 125 Shots Fired 185 | 30 94 61 Gun 105 | 30 47 28 Cannon 79 | . 46 33 Launcher 1 | . 1 . Special . | . . . Kinetic 97 | 30 47 20 Thermal 87 | . 46 41 Explosive 1 | . 1 . Electromagnetic . | . . . Robot Hit Streak 21 | 5 12 21 Robot Miss Streak 5 | 3 5 2 Penetration Max . | . . . Secondary Targets . | . . . Shots Hit Robots 114 | 17 53 44 Core Hits 47 | 8 26 13 Critical Kills 2 | . 2 . Critical Parts Destroyed 1 | . 1 . Critical Strikes 4 | . 3 1 Burn 1 | . . 1 Meltdown 1 | . 1 . Destroy 2 | . 2 . Melee Attacks 21 | . 4 17 Impact 21 | . 4 17 Slashing . | . . . Piercing . | . . . Sneak Attacks . | . . . Combat Hostiles . | . . . Follow-up Attacks . | . . . Damage Inflicted 1619 | 140 897 582 Guns 580 | 140 173 267 Cannons 891 | . 576 315 Explosions 146 | . 146 . Melee . | . . . Ramming 2 | . 2 . Kinetic 488 | 140 173 175 Thermal 983 | . 576 407 Explosive 146 | . 146 . Electromagnetic . | . . . Impact . | . . . Slashing . | . . . Piercing . | . . . Highest Corruption 6 | . 6 6 Average Corruption 5 | . 4 6 Corruption Purged . | . . . Corruption Blocked . | . . . Effects 72 | . 43 29 Message Errors 17 | . 12 5 Matter Fused 16 | . 11 5 Heat Flow Errors 7 | . 2 5 Energy Discharges 12 | . 6 6 Parts Rejected 2 | . 2 . Parts Fused 1 | . . 1 Data Loss (minor) 7 | . 3 4 Data Loss (major) 5 | . 3 2 Alerts 3 | . 3 . Weapon Failures 2 | . 1 1 Overload Shots . | . . . Overflow Damage 32 | . 32 . Projectiles 4 | . 4 . Explosions 28 | . 28 . Melee . | . . . Knockbacks . | . . . Impact . | . . . Kinetic . | . . . Secondary . | . . . Self-Inflicted Damage 32 | . 32 . Shots 1 | . 1 . Rammed . | . . . Targets Rammed 1 | . 1 . Kicked . | . . . Crushed 1 | . 1 . Highest Temperature 304 | . 255 304 Average Temperature 88 | . 86 92 Received Heat Transfer 819 | . 231 588 Effects 1 | . . 1 Energy Bleed 1 | . . 1 Siege Activations . | . . . Martial Activations . | . . . Shielding Activations . | . . . Robots Disrupted . | . . . Combat Hostiles . | . . . Robots Corrupted . | . . . Combat Hostiles . | . . . Parts Fried . | . . . Impact Corruptions . | . . . Robots Melted 1 | . 1 . Combat Hostiles 1 | . 1 . Parts Melted 2 | . 2 . Heat Transferred 2183 | . 1221 962 Parts Sabotaged . | . . . Parts Stolen . | . . . Parts Stripped . | . . . Power Chain Reactions . | . . . Alert | -11 -10 -10 ------- Run | Yrd Mat Sub Maximum Alert Level . | . . . Low Security (%) 100 | 100 100 . Level 1 . | . . . Level 2 . | . . . Level 3 . | . . . Level 4 . | . . . Level 5 . | . . . High Security . | . . . Max Security . | . . . Peak Influence 142 | 5 142 . Initial . | . . . Average 45 | . 49 . Influence Increases 557 | 20 467 70 Destroy 0b10 Robot/C 340 | . 280 60 Destroy 0b10 Robot/NC 55 | 20 35 . Destroy Leader 68 | . 58 10 Disable Machine 30 | . 30 . Destroy Structure 4 | . 4 . Lose Combat Pursuer 60 | . 60 . Influence Decreases 557 | 20 459 78 Entered New Map 4 | . . 4 Time Decay 513 | 20 439 54 Lost Part 40 | . 20 20 Squads Dispatched 1 | . 1 . Investigation . | . . . Extermination . | . . . Reinforcement 1 | . 1 . Assault . | . . . Garrison . | . . . Intercept . | . . . Searches Triggered . | . . . Construction Impeded . | . . . Haulers Reinforced . | . . . Active Scanning Responses . | . . . Cargo Convoy Interrupts . | . . . Stealth | -11 -10 -10 --------- Run | Yrd Mat Sub Distress Signals 3 | . 3 . Communications Jammed . | . . . Distress Signals . | . . . Times Spotted 33 | . 25 8 Peak Tracking Total 5 | . 5 2 Tactical Retreats 2 | . 2 . Traps | -11 -10 -10 ------- Run | Yrd Mat Sub Traps Triggered 4 | . 3 1 Indirectly . | . . . Trap Hack Attempts . | . . . Triggered . | . . . Disarmed . | . . . Reprogrammed . | . . . Reused . | . . . Traps Extracted . | . . . Installed . | . . . Triggered . | . . . Machines | -11 -10 -10 ---------- Run | Yrd Mat Sub Machines Disabled 2 | . 2 . Max in Single Turn 2 | . 2 . Machines Repaired . | . . . Machines Dismantled . | . . . Machines Sabotaged . | . . . Overloaded Fab Kills . | . . . Hacking | -11 -10 -10 --------- Run | Yrd Mat Sub Machines Accessed 8 | . 8 . Terminals 5 | . 5 . Fabricators . | . . . Repair Stations 1 | . 1 . Recycling Units 2 | . 2 . Scanalyzers . | . . . Garrison Access . | . . . Total Hacks 17 | . 17 . Successful 5 | . 5 . Failed 12 | . 12 . Catastrophic 3 | . 3 . Database Lockouts . | . . . Manual 6 | . 6 . Terminals 9 | . 9 . Fabricators . | . . . Repair Stations 3 | . 3 . Recycling Units 5 | . 5 . Scanalyzers . | . . . Garrison Access . | . . . Terminal Hacks . | . . . Fabricator Hacks . | . . . Repair Station Hacks 2 | . 2 . Scan Component 1 | . 1 . Repair 1 | . 1 . Recycling Unit Hacks 2 | . 2 . Retrieve Components 2 | . 2 . Scanalyzer . | . . . Garrison Access Hacks . | . . . Unauthorized Hacks 1 | . 1 . Terminals 1 | . 1 . Botnet 1 | . 1 . Fabricators . | . . . Repair Stations . | . . . Recycling Units . | . . . Scanalyzers . | . . . Garrison Access . | . . . Data Cores Recovered 1 | . 1 . Used . | . . . Hacking Detections 8 | . 8 . Full Trace Events . | . . . Feedback Events . | . . . Feedback Blocked . | . . . Robot Schematics Acquired . | . . . Robots Built . | . . . Authchips . | . . . Time . | . . . Total Robot Build Rating . | . . . Part Schematics Acquired . | . . . Parts Built . | . . . Authchips . | . . . Time . | . . . Total Part Build Rating . | . . . Part Studies Acquired . | . . . Parts Repaired 1 | . 1 . Time 26 | . 26 . Parts Recycled . | . . . Recycled Matter . | . . . Retrieved Matter . | . . . Retrieved Components 9 | . 9 . Parts Scanalyzed . | . . . Part Schematics Acquired . | . . . Parts Damaged . | . . . Bothacking | -11 -10 -10 ------------ Run | Yrd Mat Sub Used RIF Installer . | . . . Robots Hacked . | . . . Non-combat . | . . . Combat . | . . . Robot Hacks Applied . | . . . Relay Couplers Released . | . . . Fabnet Peak Effective % . | . . . Robots Rewired . | . . . Allies Hacked . | . . . Hacks Repelled . | . . . Allies | -11 -10 -10 -------- Run | Yrd Mat Sub Total Allies . | . . . Largest Group . | . . . Highest-Rated Group . | . . . Highest-Rated Ally . | . . . Total Orders . | . . . Ally Attacks . | . . . Total Damage . | . . . Kills . | . . . Allies Corrupted . | . . . Allies Melted . | . . . Intel | -11 -10 -10 ------- Run | Yrd Mat Sub Active Infowar (turns) 2788 | 31 1843 914 Seismic 2788 | 31 1843 914 Robot Analysis Total . | . . . Derelict Logs Recovered 1 | . . 1 Drone Launches . | . . . Drone Recoveries . | . . . Exploration | -11 -10 -10 ------------- Run | Yrd Mat Sub Turns Passed 3013 | 186 1843 984 Spaces Moved 1416 | 88 843 485 Core 7 | 7 . . Treads 1409 | 81 843 485 Legs . | . . . Wheels . | . . . Hover . | . . . Flight . | . . . Fastest Speed 50 | 50 160 160 Average Speed 159 | 151 160 160 Slowest Speed 240 | 160 240 240 Overloaded Moves . | . . . Propulsion Burnouts . | . . . Robots Hopped . | . . . Potential Cave-ins . | . . . Cave-ins Triggered . | . . . Exploration Rate (%) 46 | 7 96 37 Regions Visited 2 Branch Regions 1 Pre-discovered Areas 1 | . . 1 Known Exits Taken . | . . . Unknown Exits Taken 2 | 1 1 . Scrap Searched . | . . . Spaces Dug 2 | . 2 . Terrain Destroyed 4 | . 4 . Melee 2 | . 2 . Projectile . | . . . AOE 2 | . 2 . Terrain Rammed . | . . . Walls Destroyed . | . . . Machines Disabled . | . . . Actions | -11 -10 -10 --------- Run | Yrd Mat Sub Total 1955 | 114 1243 598 Wait 356 | 1 317 38 Move 1414 | 87 842 485 Hop . | . . . Pick Up 26 | 4 14 8 Fast Attach 11 | 7 4 . Attach 5 | . 2 3 Detach . | . . . Swap 16 | . 5 11 Drop 8 | . 6 2 Fire 97 | 15 48 34 Melee 21 | . 4 17 Ram . | . . . Kick . | . . . Crush 1 | . 1 . Escape Stasis . | . . . Rewire . | . . . Trap . | . . . Miscellaneous . | . . . Route ------- -11/Scrapyard -10/Materials (discovered 6 exits: [*Mat x3] / [*Min x2] / [*Sub]) -10/Subcaves History --------- Turn | Location | Event 35 | -11/Scrapyard | Discovered new exit (range 16) 187 | -11/Scrapyard | Entered Materials 302 | -10/Materials | Build established: Mutant 697 | -10/Materials | Discovered new exit (range 16) 853 | -10/Materials | Discovered new exit (range 6) 879 | -10/Materials | Discovered new exit (range 8) 1062 | -10/Materials | Discovered new exit (range 16) 1206 | -10/Materials | Discovered new exit (range 6) 1516 | -10/Materials | Repaired Beam Cannon 1651 | -10/Materials | Discovered new exit (range 8) 1687 | -10/Materials | Derelicts attacked the area 2030 | -10/Materials | Entered Subcaves 2031 | -10/Subcaves | Approached by a straggling Scientist 2083 | -10/Subcaves | Core integrity fell below 50% 2416 | -10/Subcaves | Learned location of Zion (-7) 2416 | -10/Subcaves | Met a Zionite searching for "candidates" 2433 | -10/Subcaves | Shifting Twisted Machinery released Enh. Flamer 2652 | -10/Subcaves | Shifting Twisted Machinery released Sub. Machine Gun 2952 | -10/Subcaves | Shifting Twisted Machinery released Piercing Trap 2993 | -10/Subcaves | Core integrity fell below 20% 3014 | -10/Subcaves | Destroyed by D3-ZA3(R) with Subdweller Beam Cannon Last Messages --------------- 02814_ Subatomizers dissect the Lgt. Treads. 02831_ FFYN8LP1HJSWJI/#NZNPV%X|P